Cogmind - Beta 10 @@@ ROGUE MODE // 2020.09.19 @ 14:30:58 Player: bugsniper Result: Destroyed by Y-64 Sentinel with Wave Gun Performance ------------- Evolutions (4) 2000 Regions Visited (20) 4000 Robots Destroyed (212) 1060 Value Destroyed (7720) 7720 Prototype IDs (27) 540 Alien Tech Used (0) 0 Bonus (1437) 1437 TOTAL SCORE: 16757 Bonus ------- High Alert Combat Kills 856 Follower Combat Kills 547 Entered Garrisons 400 Used RIF Installer 1000 Met Data Miner 300 Friendly Fire -1666 Cogmind --------- Core Integrity 0/850 Matter 244/300 Energy 81/100 System Corruption 4% Temperature Cool (9) Movement Core (50) Location -5/Proximity Caves Parts ------- > --- POWER (2) -------- (None) > --- PROPULSION (2) --- (None) > --- UTILITY (9) ------ (None) > --- WEAPON (2) ------- (None) > --- INVENTORY (4) ---- Relay Coupler [Grunt] (17) Cooled Particle Cannon Heavy Plasma Cannon Improved Remote Datajack Peak State ------------ > --- POWER ------------ Reinforced Deuterium Engine Light Angular Momentum Engine > --- PROPULSION ------- Armored Huge Wheel > --- UTILITY ---------- Advanced Heat Sink Advanced Heat Sink Advanced Heat Sink Large Storage Unit Large Storage Unit Targeting Computer Matter Filter Improved Propulsion Shielding System Shield > --- WEAPON ----------- Magnetic Acceleration Cannon Magnetic Acceleration Cannon > --- INVENTORY -------- Reinforced Deuterium Engine Medium Treads Improved Medium Treads Armored Wheel Coolant Injector Experimental Sensor Array Advanced Terrain Scanner Matter Filter Relay Coupler [Brawler] Cooled Particle Cannon Heavy Plasma Cannon Magnetic Acceleration Cannon Heavy Flak Cannon Remote Datajack Axe Axe [Rating: 61] Favorites ----------- Power Heavy Ion Engine Engine Heavy Ion Engine Power Core Nuclear Core Propulsion Light Treads Treads Light Treads Leg Aluminum Leg Wheel Armored Huge Wheel Hover Unit Cooled Aerolev Unit Flight Unit Cooled Cesium-ion Thruster Utility Medium Storage Unit Device Improved Heat Sink Storage Medium Storage Unit Processor Targeting Computer Hackware Relay Coupler [Swarmer] Protection Medium Armor Plating Weapon Assault Rifle Energy Gun Particle Gun Energy Cannon Phase Cannon Ballistic Gun Assault Rifle Ballistic Cannon Magnetic Acceleration Cannon Launcher Shock Bomb Launcher Special Weapon Remote Datajack Impact Weapon Powered Hammer Slashing Weapon Axe Special Melee Weapon Improved Datajack Build | -11 -10 -10 -9 -9 -9 -8 -8 -8 -8 -8 -7 -7 -7 -7 -6 -6 -6 -6 -6 -5 ------- Run | Scr Mat Min Mat Min Exi Min Mat Gar Mat Gar Fac Low Low Dat Pro Fac Low Low Zio Pro Slots Evolved 8 | . . . 2 . . . 2 . . . 2 . . . . 2 . . . . Power 1 | . . . . . . . . . . . 1 . . . . . . . . . Propulsion . | . . . . . . . . . . . . . . . . . . . . . Utility 7 | . . . 2 . . . 2 . . . 1 . . . . 2 . . . . Weapon . | . . . . . . . . . . . . . . . . . . . . . Parts Attached 253 | . 6 5 10 11 . 15 3 25 24 21 34 18 6 . 5 65 2 . 3 . Power 21 | . . 3 1 . . . . 1 . 1 2 5 . . . 8 . . . . Engine 17 | . . 3 1 . . . . 1 . . 2 2 . . . 8 . . . . Core 4 | . . . . . . . . . . 1 . 3 . . . . . . . . Reactor . | . . . . . . . . . . . . . . . . . . . . . Propulsion 31 | . 2 1 3 . . 1 . 3 5 7 1 . 1 . . 7 . . . . Treads 21 | . 2 1 3 . . 1 . 3 3 7 . . . . . 1 . . . . Leg 2 | . . . . . . . . . 2 . . . . . . . . . . . Wheel 3 | . . . . . . . . . . . 1 . 1 . . 1 . . . . Hover 1 | . . . . . . . . . . . . . . . . 1 . . . . Flight 4 | . . . . . . . . . . . . . . . . 4 . . . . Utility 88 | . 3 . 4 1 . 6 3 4 8 6 9 5 3 . 3 32 1 . . . Device 42 | . . . 1 . . 5 . 1 2 3 3 2 2 . 2 20 1 . . . Storage 6 | . 2 . . . . . . . 3 . . . . . . 1 . . . . Processor 11 | . . . 1 . . . . . 1 . 2 1 . . . 6 . . . . Hackware 7 | . . . . . . . 1 . . . 3 1 . . . 2 . . . . Protection 22 | . 1 . 2 1 . 1 2 3 2 3 1 1 1 . 1 3 . . . . Artifact . | . . . . . . . . . . . . . . . . . . . . . Weapon 113 | . 1 1 2 10 . 8 . 17 11 7 22 8 2 . 2 18 1 . 3 . Energy Gun 23 | . . . . 1 . . . 5 8 2 3 4 . . . . . . . . Energy Cannon 24 | . . . 1 . . 4 . 5 1 3 4 . 2 . 1 3 . . . . Ballistic Gun 6 | . 1 1 1 2 . . . . . . . . . . . 1 . . . . Ballistic Cannon 13 | . . . . 3 . 1 . . . 1 3 . . . . 5 . . . . Launcher 22 | . . . . 4 . 3 . 7 2 1 1 1 . . 1 2 . . . . Special Weapon 11 | . . . . . . . . . . . 6 2 . . . 2 . . 1 . Impact Weapon 5 | . . . . . . . . . . . . . . . . 3 1 . 1 . Slashing Weapon 7 | . . . . . . . . . . . 3 1 . . . 2 . . 1 . Piercing Weapon . | . . . . . . . . . . . . . . . . . . . . . Special Melee Weapon 2 | . . . . . . . . . . . 2 . . . . . . . . . Unidentified Prototypes 9 | . . . 1 . . . . . 3 . 2 . . . . 3 . . . . Parts Lost 52 | . . 2 . . . 2 . 7 1 5 2 3 1 . . 25 . . . 4 Power 8 | . . 1 . . . . . 1 . . 1 . . . . 4 . . . 1 Propulsion 7 | . . . . . . 1 . 2 . . . . . . . 3 . . . 1 Utility 24 | . . . . . . 1 . 1 1 2 . 3 1 . . 13 . . . 2 Weapon 13 | . . 1 . . . . . 3 . 3 1 . . . . 5 . . . . Highest Loss Streak 10 | . . 1 . . . 1 . 4 1 4 2 2 1 . . 10 . . . 4 Average Slot Usage (%) 94 | . 99 99 98 100 100 99 89 99 97 91 93 88 91 92 92 76 93 93 93 88 Engine 8 | . 14 13 11 11 11 11 9 9 9 3 6 6 . . . 7 6 6 6 5 Core 2 | . . . . . . . . . . 5 7 7 15 15 15 2 . . . . Treads 14 | . 24 28 22 22 22 21 18 17 11 18 6 . . . . . . . . . Wheel 1 | . . . . . . . . . . . 4 7 7 7 7 3 . . . . Device 8 | . . . . . . 8 9 9 9 9 8 13 15 15 21 17 26 26 26 22 Storage 17 | . 22 28 22 22 22 22 18 18 18 18 15 15 15 15 15 8 . . . . Processor 4 | . . . 4 . . . . . 4 9 6 1 7 7 7 11 26 26 26 26 Hackware 2 | . . . . . . . . 6 . . 4 7 7 7 7 6 6 6 6 6 Protection 12 | . 4 . 16 22 22 13 16 20 20 10 15 11 6 7 1 2 . . . . Energy Gun 4 | . . . . 2 11 . . 7 12 11 . 12 1 . . . . . . . Energy Cannon 4 | . . . . . . 15 18 8 5 5 6 . 13 15 14 3 . . . . Ballistic Gun 6 | . 28 28 21 12 11 2 . . . . . . . . . . . . . . Ballistic Cannon 1 | . . . . 6 . 2 . . . 1 2 . . . . 3 . . . . Naked Turns 3 | . . . . . . . . . . . . . . . . . . . . 3 Heaviest Build 89 | 10 23 25 42 45 44 45 51 52 71 71 75 68 63 63 63 89 20 19 20 19 Greatest Support 60 | 20 40 40 40 40 40 40 40 40 40 60 60 28 28 28 28 28 22 22 22 22 Greatest Overweight (x) 3 | . . . 1 1 1 1 1 2 2 1 2 2 2 2 2 3 . . . 1 Average Overweight (x) . | . . . . 1 1 . 1 1 1 1 1 2 1 2 2 . . . . . Largest Inventory Capacity 16 | 6 12 12 12 12 12 12 12 12 16 16 16 16 16 16 16 16 4 4 4 4 Average Capacity 12 | 6 9 12 12 12 12 12 12 12 13 16 16 16 16 16 16 11 4 4 4 4 Most Carried 16 | 6 8 12 12 12 12 12 12 12 15 16 16 16 16 15 15 16 4 4 4 4 Average Carried 12 | 6 7 11 10 11 12 10 12 10 12 14 14 14 15 15 15 11 4 4 4 4 Final Capacity 16 | 6 12 12 12 12 12 12 12 12 16 16 16 16 16 16 16 4 4 4 4 4 Final Carried 16 | 6 8 12 12 12 12 12 12 12 15 14 16 15 15 15 15 4 4 4 4 4 Class Distribution -------------------- 53% | Mutant 46% | Scavenger-Mutant Dominant Class ---------------- Mutant | -10/Materials Mutant | -10/Mines Mutant | -9/Materials Mutant | -9/Mines Scavenger-Mutant | -9/Exiles Mutant | -8/Mines Mutant | -8/Materials Mutant | -8/Garrison Scavenger-Mutant | -8/Materials Mutant | -8/Garrison Scavenger-Mutant | -7/Factory Scavenger-Mutant | -7/Lower Caves Scavenger-Mutant | -7/Lower Caves Scavenger-Mutant | -7/Data Miner Mutant | -6/Proximity Caves Scavenger-Mutant | -6/Factory Mutant | -6/Lower Caves Mutant | -6/Lower Caves Mutant | -6/Zion Mutant | -5/Proximity Caves Resources | -11 -10 -10 -9 -9 -9 -8 -8 -8 -8 -8 -7 -7 -7 -7 -6 -6 -6 -6 -6 -5 ----------- Run | Scr Mat Min Mat Min Exi Min Mat Gar Mat Gar Fac Low Low Dat Pro Fac Low Low Zio Pro Matter Collected 4804 | 200 236 335 211 373 . 330 . 455 303 285 285 508 55 . 55 1073 100 . . . Remotely . | . . . . . . . . . . . . . . . . . . . . . Salvage Created 7492 | . 503 305 260 437 . 306 . 547 899 676 833 585 185 . 127 1773 . . . 56 Parts 422 | . 22 19 25 44 . 16 . 33 45 44 48 26 9 . 6 80 . . . 5 Haulers Intercepted 6 | . 1 . . . . . . . 2 . 2 . . . . 1 . . . . Recyclers Shooed 10 | . 5 1 . 1 . . . . 1 . 1 . . . . 1 . . . . Parts Field Recycled . | . . . . . . . . . . . . . . . . . . . . . Retrieved Matter . | . . . . . . . . . . . . . . . . . . . . . Parts Self-Destructed 34 | . . . . . . . . . . . . 19 5 . 5 . . . . 5 Prevented 17 | . . . . . . . . . . . . 13 3 . 1 . . . . . Kills | -11 -10 -10 -9 -9 -9 -8 -8 -8 -8 -8 -7 -7 -7 -7 -6 -6 -6 -6 -6 -5 ------- Run | Scr Mat Min Mat Min Exi Min Mat Gar Mat Gar Fac Low Low Dat Pro Fac Low Low Zio Pro Combat Hostiles Destroyed 156 | . 4 11 9 13 . 13 . 26 10 16 11 11 3 . 2 26 . . . 1 Melee 4 | . . . . . . . . . . 1 . . . . . 2 . . . 1 Guns 52 | . 4 11 8 3 . . . 6 4 12 . 1 3 . . . . . . . Cannons 40 | . . . 1 3 . 4 . 7 3 1 3 . . . . 18 . . . . AOE 51 | . . . . 7 . 9 . 12 3 1 7 7 . . 2 3 . . . . Classes Destroyed 17 | . 4 4 1 2 . . . 1 . 2 2 . . . . 1 . . . . Worker 13 | . . . . 5 . . . . . . 2 . . . . 6 . . . . Builder 8 | . . 2 1 2 . . . . . . 2 . . . . 1 . . . . Tunneler 6 | . . 1 . 4 . 1 . . . . . . . . . . . . . . Hauler 6 | . 1 . . . . . . . 2 . 2 . . . . 1 . . . . Recycler 13 | . 3 1 . . . . . . 4 . 3 . . . . 2 . . . . Operator 1 | . . . . . . . . . . . . . . . . 1 . . . . Watcher 4 | . 1 . . . . . . . 1 . . . . . . 2 . . . . Swarmer 48 | . . 2 6 7 . 3 . 14 2 7 . 7 . . . . . . . . Grunt 60 | . 4 2 2 4 . 8 . 7 3 5 6 2 2 . 1 14 . . . . Brawler 8 | . . . . 1 . 2 . 2 . . . 1 . . . 2 . . . . Duelist 8 | . . . . . . . . 1 . . 4 1 . . 1 1 . . . . Protector 1 | . . . . . . . . . . . 1 . . . . . . . . . Sentry 16 | . . . 1 . . . . 2 5 1 1 1 1 . . 4 . . . . Hunter 2 | . . . . . . . . . . 1 . 1 . . . . . . . . Programmer 7 | . . . . . . . . . . . 2 . . . . 4 . . . 1 Behemoth 3 | . . . . . . . . . . 2 . . . . . 1 . . . . Assembled 8 | . . 7 . 1 . . . . . . . . . . . . . . . . Best Kill Streak 9 | . 2 2 4 5 . 3 . 4 3 5 9 3 3 . 2 7 . . . 1 Combat Bots Only 6 | . 2 2 4 3 . 3 . 4 2 5 6 3 3 . 2 4 . . . 1 Max Kills in Single Turn 6 | . 1 1 2 3 . 3 . 3 2 1 6 3 1 . 2 5 . . . 1 Gunslinging . | . . . . . . . . . . . . . . . . . . . . . Exploded 3 | . . . . 2 . 3 . 3 1 1 2 2 . . 2 1 . . . . Melee 1 | . . . . . . . . . . 1 . . . . . 1 . . . 1 Uniques/NPCs Destroyed . | . . . . . . . . . . . . . . . . . . . . . Combat | -11 -10 -10 -9 -9 -9 -8 -8 -8 -8 -8 -7 -7 -7 -7 -6 -6 -6 -6 -6 -5 -------- Run | Scr Mat Min Mat Min Exi Min Mat Gar Mat Gar Fac Low Low Dat Pro Fac Low Low Zio Pro Damage Taken 11493 | . 142 451 396 184 . 823 . 1059 652 1404 757 852 241 . 159 3892 88 7 . 386 Core 1703 | . 11 80 26 7 . 127 . 188 54 94 57 140 39 . 10 602 28 . . 240 Absorbed by Shields . | . . . . . . . . . . . . . . . . . . . . . Core Remaining (%) 65 | 100 . 63 . . . 60 . . . 38 . . . . 64 . . . . . Volleys Fired 483 | . 30 40 24 38 . 36 . 50 42 46 41 31 6 . 1 96 1 . 1 . Largest 2 | . 2 2 2 2 . 2 . 2 2 2 2 2 2 . 1 2 1 . 1 . Hottest 180 | . 40 40 88 88 . 80 . 155 137 120 140 110 180 . 36 180 40 . 40 . Shots Fired 852 | . 60 83 48 66 . 49 . 92 83 83 53 42 12 . 1 178 1 . 1 . Gun 432 | . 60 83 47 46 . 13 . 35 45 72 . 21 10 . . . . . . . Cannon 319 | . . . 1 13 . 21 . 42 34 6 32 . 2 . . 168 . . . . Launcher 74 | . . . . 7 . 15 . 15 4 5 5 14 . . 1 8 . . . . Special 27 | . . . . . . . . . . . 16 7 . . . 2 1 . 1 . Kinetic 388 | . 60 83 47 51 . 26 . . . . 13 . . . . 108 . . . . Thermal 253 | . . . 1 8 . 8 . 77 67 11 19 . 2 . . 60 . . . . Explosive 41 | . . . . 7 . 15 . 15 4 . . . . . . . . . . . Electromagnetic 143 | . . . . . . . . . 12 72 5 35 10 . 1 8 . . . . Robot Hit Streak 32 | . 9 5 12 9 . 11 . 10 22 27 8 9 18 . 19 32 2 . 3 . Robot Miss Streak 6 | . 2 3 3 3 . 2 . 3 5 4 6 4 . . . 2 . . . . Penetration Max . | . . . . . . . . . . . . . . . . . . . . . Secondary Targets 5 | . . 2 . . . . . . . 2 . . 1 . . . . . . . Max Gunslinging Chain 1 | . . 1 . . . . . . . 1 . . 1 . . . . . . . Shots Hit Robots 584 | . 45 51 33 32 . 31 . 47 56 64 42 30 9 . 1 132 1 . 1 9 Core Hits 372 | . 18 24 12 29 . 29 . 40 27 35 42 18 6 . 3 87 . . . 2 Critical Hits 7 | . 1 . . . . . . 1 . 1 1 1 . . . 2 . . . . Critical Kills 3 | . . . . . . . . 1 . . . 1 . . . 1 . . . . Critical Parts Destroyed 4 | . 1 . . . . . . . . 1 1 . . . . 1 . . . . Melee Attacks 73 | . . . . . . . . . . . 22 1 . . . 34 2 1 . 13 Impact 16 | . . . . . . . . . . . . . . . . 14 . . . 2 Slashing 48 | . . . . . . . . . . . 13 1 . . . 20 2 1 . 11 Piercing . | . . . . . . . . . . . . . . . . . . . . . Sneak Attacks 8 | . . . . . . . . . . . 8 . . . . . . . . . Combat Hostiles . | . . . . . . . . . . . . . . . . . . . . . Follow-up Attacks 3 | . . . . . . . . . . . . . . . . 1 . . . 2 Damage Inflicted 20263 | . 554 649 403 1052 . 1836 . 2270 1337 1305 3124 1029 267 . 179 5930 . . . 328 Guns 4478 | . 543 605 382 353 . 135 . 333 621 934 . 398 174 . . . . . . . Cannons 6486 | . . . 21 164 . 392 . 651 476 152 467 . . . . 4163 . . . . Explosions 8609 | . . . . 476 . 1302 . 1273 240 217 2561 631 93 . 179 1637 . . . . Melee 550 | . . . . . . . . . . . 96 . . . . 126 . . . 328 Ramming 140 | . 11 44 . 59 . 7 . 13 . 2 . . . . . 4 . . . . Kinetic 5316 | . 543 605 382 433 . 320 . . . . 283 . . . . 2750 . . . . Thermal 6660 | . . . 21 84 . 336 . 984 893 377 1489 185 93 . 138 2060 . . . . Explosive 4054 | . . . . 476 . 1173 . 1273 201 . 931 . . . . . . . . . Electromagnetic 3543 | . . . . . . . . . 243 926 325 844 174 . 41 990 . . . . Impact 92 | . . . . . . . . . . . . . . . . 42 . . . 50 Slashing 458 | . . . . . . . . . . . 96 . . . . 84 . . . 278 Piercing . | . . . . . . . . . . . . . . . . . . . . . Highest Corruption 5 | . . 5 . . . . . 3 3 3 1 1 1 1 1 2 2 2 2 4 Average Corruption 2 | . . 5 . . . . . 2 3 3 1 1 1 1 1 1 2 2 2 2 Corruption Purged . | . . . . . . . . . . . . . . . . . . . . . Effects 131 | . . 31 . . . . . 19 25 32 . 3 1 . . 12 3 2 . 3 Message Errors 34 | . . 6 . . . . . 4 9 8 . 1 . . . 5 . 1 . . Matter Fused 20 | . . 6 . . . . . 2 4 8 . . . . . . . . . . Heat Flow Errors 21 | . . 6 . . . . . 6 2 4 . . . . . 1 2 . . . Energy Discharges 17 | . . 4 . . . . . 3 3 3 . 1 . . . 2 . . . 1 Data Loss (minor) 18 | . . 2 . . . . . 3 1 6 . 1 1 . . 2 1 1 . . Data Loss (major) 1 | . . 1 . . . . . . . . . . . . . . . . . . Misfires 4 | . . 4 . . . . . . . . . . . . . . . . . . Targeting Errors 14 | . . 1 . . . . . 1 5 3 . . . . . 2 . . . 2 Weapon Failures 2 | . . 1 . . . . . . 1 . . . . . . . . . . . Overload Shots . | . . . . . . . . . . . . . . . . . . . . . Overflow Damage 633 | . . . . . . 78 . 55 34 3 246 6 . . . 199 . . . 12 Projectiles 168 | . . . . . . 15 . 9 34 . . . . . . 110 . . . . Explosions 421 | . . . . . . 63 . 46 . 3 246 6 . . . 57 . . . . Melee 44 | . . . . . . . . . . . . . . . . 32 . . . 12 Knockbacks 35 | . . . . . . 1 . . . . 1 . . . . 33 . . . . Impact . | . . . . . . . . . . . . . . . . . . . . . Kinetic 34 | . . . . . . 1 . . . . 1 . . . . 32 . . . . Secondary 1 | . . . . . . . . . . . . . . . . 1 . . . . Self-Inflicted Damage 766 | . . . . 35 . 137 . 167 21 83 64 83 54 . . 122 . . . . Shots 27 | . . . . 1 . 5 . 7 1 2 3 5 1 . . 2 . . . . Rammed 19 | . 1 7 . 6 . 3 . . . . 1 . . . . 1 . . . . Targets Rammed 24 | . 1 10 . 7 . 3 . . . 1 1 . . . . 1 . . . . Kicked . | . . . . . . . . . . . . . . . . . . . . . Crushed 5 | . . 3 . 1 . . . . . 1 . . . . . . . . . . Highest Temperature 516 | . 2 265 36 181 . 331 . 234 462 236 364 96 115 . . 516 177 . 12 . Average Temperature 94 | . 2 86 20 41 . 113 . 91 155 58 113 32 63 . . 101 82 . 12 . Received Heat Transfer 3351 | . 78 210 102 21 . 369 . 198 279 267 225 126 66 . 57 1320 12 . . 21 Effects 9 | . . . . . . . . . 5 . 3 . . . . 1 . . . . Shutdowns 2 | . . . . . . . . . 2 . . . . . . . . . . . Energy Bleed 2 | . . . . . . . . . 1 . 1 . . . . . . . . . Interference 2 | . . . . . . . . . . . 2 . . . . . . . . . Matter Decay 1 | . . . . . . . . . . . . . . . . 1 . . . . Short Circuit 1 | . . . . . . . . . 1 . . . . . . . . . . . Damage (minor) 1 | . . . . . . . . . 1 . . . . . . . . . . . Siege Activations . | . . . . . . . . . . . . . . . . . . . . . Robots Corrupted 8 | . . . . . . . . . . 1 1 3 . . . 3 . . . . Combat Hostiles 8 | . . . . . . . . . . 1 1 3 . . . 3 . . . . Parts Fried 25 | . . . . . . . . . 2 9 2 6 1 . . 5 . . . . Impact Corruptions 1 | . . . . . . . . . . . . . . . . 1 . . . . Robots Melted 1 | . . . . . . . . 1 . . . . . . . . . . . . Combat Hostiles 1 | . . . . . . . . 1 . . . . . . . . . . . . Parts Melted 13 | . . . . 2 . . . 5 5 . . 1 . . . . . . . . Heat Transferred 8550 | . . . 37 185 . 550 . 1863 1678 533 1200 200 100 . 100 2104 . . . . Parts Sabotaged . | . . . . . . . . . . . . . . . . . . . . . Parts Stolen 1 | . . . . . . . . . . . . 1 . . . . . . . . Parts Stripped . | . . . . . . . . . . . . . . . . . . . . . Power Chain Reactions 12 | . . . . . . . . . 1 3 1 4 1 . 1 1 . . . . Missiles Intercepted . | . . . . . . . . . . . . . . . . . . . . . Alert | -11 -10 -10 -9 -9 -9 -8 -8 -8 -8 -8 -7 -7 -7 -7 -6 -6 -6 -6 -6 -5 ------- Run | Scr Mat Min Mat Min Exi Min Mat Gar Mat Gar Fac Low Low Dat Pro Fac Low Low Zio Pro Peak Influence 1189 | . 134 75 275 328 . 265 29 1189 719 780 610 . . . . 612 . . . . Initial 579 | . . 15 1 28 . . 25 18 579 394 399 . . . . 11 . . . . Average 378 | . 39 20 102 213 . 190 25 718 581 677 311 . . . . 431 . . . . Maximum Alert Level 4 | . . . 1 1 . 1 . 4 3 3 2 . . . . 2 . . . . Low Security (%) 36 | 100 100 100 75 42 . 60 100 14 . . 21 . . . . 20 . . . . Level 1 19 | . . . 24 57 . 39 . 11 . 7 44 . . . . 4 . . . . Level 2 28 | . . . . . . . . 18 97 24 34 . . . . 75 . . . . Level 3 12 | . . . . . . . . 30 2 67 . . . . . . . . . . Level 4 3 | . . . . . . . . 25 . . . . . . . . . . . . Level 5 . | . . . . . . . . . . . . . . . . . . . . . High Security . | . . . . . . . . . . . . . . . . . . . . . Max Security . | . . . . . . . . . . . . . . . . . . . . . Squads Dispatched 23 | . 1 . . 1 . . . . . . 10 . . . . 11 . . . . Investigation 4 | . . . . 1 . . . . . . . . . . . 3 . . . . Extermination 5 | . . . . . . . . . . . 3 . . . . 2 . . . . Reinforcement 9 | . 1 . . . . . . . . . 4 . . . . 4 . . . . Assault 5 | . . . . . . . . . . . 3 . . . . 2 . . . . Garrison . | . . . . . . . . . . . . . . . . . . . . . Intercept . | . . . . . . . . . . . . . . . . . . . . . Construction Impeded 1 | . . . . . . . . . . . 1 . . . . . . . . . Haulers Reinforced 4 | . . . . . . . . . . . 2 . . . . 2 . . . . Stealth | -11 -10 -10 -9 -9 -9 -8 -8 -8 -8 -8 -7 -7 -7 -7 -6 -6 -6 -6 -6 -5 --------- Run | Scr Mat Min Mat Min Exi Min Mat Gar Mat Gar Fac Low Low Dat Pro Fac Low Low Zio Pro Distress Signals 8 | . 1 2 . . . . . . 2 . . . . . . 3 . . . . Communications Jammed . | . . . . . . . . . . . . . . . . . . . . . Distress Signals . | . . . . . . . . . . . . . . . . . . . . . Times Spotted 277 | . 16 16 11 27 . 15 . 29 15 27 19 21 3 . 8 59 1 5 . 5 Peak Tracking Total 10 | . 4 3 3 4 . 3 . 5 5 4 6 7 3 . 9 10 1 5 . 3 Tactical Retreats 52 | . 5 3 . 3 . 3 . 3 2 12 1 2 . . . 14 1 2 . 1 Traps | -11 -10 -10 -9 -9 -9 -8 -8 -8 -8 -8 -7 -7 -7 -7 -6 -6 -6 -6 -6 -5 ------- Run | Scr Mat Min Mat Min Exi Min Mat Gar Mat Gar Fac Low Low Dat Pro Fac Low Low Zio Pro Traps Triggered 18 | . . . . . . . . 11 . 3 1 . . . . 3 . . . . Indirectly . | . . . . . . . . . . . . . . . . . . . . . Trap Hack Attempts . | . . . . . . . . . . . . . . . . . . . . . Triggered . | . . . . . . . . . . . . . . . . . . . . . Disarmed . | . . . . . . . . . . . . . . . . . . . . . Reprogrammed . | . . . . . . . . . . . . . . . . . . . . . Reused . | . . . . . . . . . . . . . . . . . . . . . Traps Extracted . | . . . . . . . . . . . . . . . . . . . . . Installed . | . . . . . . . . . . . . . . . . . . . . . Triggered 18 | . . . . . . . . . . 1 . 17 . . . . . . . . Machines | -11 -10 -10 -9 -9 -9 -8 -8 -8 -8 -8 -7 -7 -7 -7 -6 -6 -6 -6 -6 -5 ---------- Run | Scr Mat Min Mat Min Exi Min Mat Gar Mat Gar Fac Low Low Dat Pro Fac Low Low Zio Pro Machines Disabled 48 | . . . 1 1 . 12 . 6 2 2 12 1 . . . 11 . . . . Max in Single Turn 12 | . . . 1 1 . 12 . 2 2 1 4 1 . . . 5 . . . . Garrison Access 1 | . . . . . . . . . . . 1 . . . . . . . . . Garrison Relay 6 | . . . . . . . . 4 . 2 . . . . . . . . . . Phase Generator 1 | . . . . . . . . 1 . . . . . . . . . . . . Machines Sabotaged . | . . . . . . . . . . . . . . . . . . . . . Garrisons Compromised . | . . . . . . . . . . . . . . . . . . . . . Overloaded Fab Kills . | . . . . . . . . . . . . . . . . . . . . . Fab Network Shutdowns 1 | . . . . . . . . . . . . . . . . 1 . . . . Hacking | -11 -10 -10 -9 -9 -9 -8 -8 -8 -8 -8 -7 -7 -7 -7 -6 -6 -6 -6 -6 -5 --------- Run | Scr Mat Min Mat Min Exi Min Mat Gar Mat Gar Fac Low Low Dat Pro Fac Low Low Zio Pro Machines Accessed 31 | . . . 1 2 . 1 1 . 6 . 4 . 2 4 . 10 . . . . Terminals 16 | . . . 1 1 . 1 . . 5 . 2 . 1 . . 5 . . . . Fabricators 5 | . . . . . . . . . . . 2 . . . . 3 . . . . Repair Stations . | . . . . . . . . . . . . . . . . . . . . . Recycling Units 1 | . . . . . . . . . . . . . . . . 1 . . . . Scanalyzers . | . . . . . . . . . . . . . . . . . . . . . Garrison Access 3 | . . . . . . . 1 . 1 . . . . . . 1 . . . . Total Hacks 82 | . . . 1 3 . 1 1 . 14 . 15 . 2 23 . 22 . . . . Successful 58 | . . . 1 1 . 1 1 . 10 . 10 . 2 23 . 9 . . . . Failed 24 | . . . . 2 . . . . 4 . 5 . . . . 13 . . . . Catastrophic 3 | . . . . . . . . . . . 1 . . . . 2 . . . . Database Lockouts . | . . . . . . . . . . . . . . . . . . . . . Manual 18 | . . . . 2 . 1 . . 2 . 7 . . . . 6 . . . . Terminals 37 | . . . 1 2 . 1 . . 13 . 10 . 1 . . 9 . . . . Fabricators 14 | . . . . . . . . . . . 5 . . . . 9 . . . . Repair Stations . | . . . . . . . . . . . . . . . . . . . . . Recycling Units 1 | . . . . . . . . . . . . . . . . 1 . . . . Scanalyzers . | . . . . . . . . . . . . . . . . . . . . . Garrison Access 5 | . . . . . . . 1 . 1 . . . . . . 3 . . . . Terminal Hacks 43 | . . . 1 1 . 1 . . 8 . 5 . 2 23 . 2 . . . . Record 12 | . . . . . . . . . . . . . 1 11 . . . . . . Part Schematic 5 | . . . . . . . . . 1 . . . . 4 . . . . . . Robot Schematic 5 | . . . . . . . . . . . . . . 5 . . . . . . Prototype ID Bank 7 | . . . . . . 1 . . 2 . . . . 3 . 1 . . . . Open Door 2 | . . . . 1 . . . . . . . . 1 . . . . . . . Branch Access Points 1 | . . . . . . . . . . . 1 . . . . . . . . . Fabricator Index 1 | . . . . . . . . . . . 1 . . . . . . . . . Locate Traps 3 | . . . 1 . . . . . 1 . 1 . . . . . . . . . Maintenance Status 1 | . . . . . . . . . 1 . . . . . . . . . . . Security Status 1 | . . . . . . . . . 1 . . . . . . . . . . . Hauler Manifests 1 | . . . . . . . . . . . 1 . . . . . . . . . Registered Components 1 | . . . . . . . . . 1 . . . . . . . . . . . Registered Prototypes 1 | . . . . . . . . . 1 . . . . . . . . . . . Zone Layout 2 | . . . . . . . . . . . 1 . . . . 1 . . . . Fabricator Hacks 5 | . . . . . . . . . . . 3 . . . . 2 . . . . Load Schematic 2 | . . . . . . . . . . . 1 . . . . 1 . . . . Build 3 | . . . . . . . . . . . 2 . . . . 1 . . . . Repair Station Hacks . | . . . . . . . . . . . . . . . . . . . . . Recycling Unit Hacks 1 | . . . . . . . . . . . . . . . . 1 . . . . Retrieve Components 1 | . . . . . . . . . . . . . . . . 1 . . . . Scanalyzer . | . . . . . . . . . . . . . . . . . . . . . Garrison Access Hacks 3 | . . . . . . . 1 . 1 . . . . . . 1 . . . . Unlock Access 2 | . . . . . . . 1 . 1 . . . . . . . . . . . Coupler Status 1 | . . . . . . . . . . . . . . . . 1 . . . . Unauthorized Hacks 6 | . . . . . . . . . 1 . 2 . . . . 3 . . . . Terminals 5 | . . . . . . . . . 1 . 2 . . . . 2 . . . . Track 1 | . . . . . . . . . . . . . . . . 1 . . . . Botnet 2 | . . . . . . . . . 1 . 1 . . . . . . . . . Operators 2 | . . . . . . . . . . . 1 . . . . 1 . . . . Fabricators . | . . . . . . . . . . . . . . . . . . . . . Repair Stations . | . . . . . . . . . . . . . . . . . . . . . Recycling Units . | . . . . . . . . . . . . . . . . . . . . . Scanalyzers . | . . . . . . . . . . . . . . . . . . . . . Garrison Access 1 | . . . . . . . . . . . . . . . . 1 . . . . Eject 1 | . . . . . . . . . . . . . . . . 1 . . . . Data Cores Recovered . | . . . . . . . . . . . . . . . . . . . . . Used . | . . . . . . . . . . . . . . . . . . . . . Hacking Detections 16 | . . . . 1 . . . . 2 . 4 . . . . 9 . . . . Full Trace Events 1 | . . . . . . . . . . . . . . . . 1 . . . . Feedback Events 1 | . . . . . . . . . . . . . . . . 1 . . . . Corruption 1 | . . . . . . . . . . . . . . . . 1 . . . . Feedback Blocked . | . . . . . . . . . . . . . . . . . . . . . Robot Schematics Acquired 5 | . . . . . . . . . . . . . . 5 . . . . . . Robots Built 4 | . . . . . . . . . . . 3 . . . . 1 . . . . Matter 405 | . . . . . . . . . . . 252 . . . . 153 . . . . Time 148 | . . . . . . . . . . . 67 . . . . 81 . . . . Total Robot Build Rating 13 | . . . . . . . . . . . 12 . . . . 1 . . . . Part Schematics Acquired 5 | . . . . . . . . . 1 . . . . 4 . . . . . . Parts Built 1 | . . . . . . . . . . . 1 . . . . . . . . . Matter 146 | . . . . . . . . . . . 146 . . . . . . . . . Time 36 | . . . . . . . . . . . 36 . . . . . . . . . Total Part Build Rating 3 | . . . . . . . . . . . 3 . . . . . . . . . Parts Repaired . | . . . . . . . . . . . . . . . . . . . . . Time . | . . . . . . . . . . . . . . . . . . . . . Parts Recycled . | . . . . . . . . . . . . . . . . . . . . . Recycled Matter . | . . . . . . . . . . . . . . . . . . . . . Retrieved Matter . | . . . . . . . . . . . . . . . . . . . . . Retrieved Components 3 | . . . . . . . . . . . . . . . . 3 . . . . Parts Scanalyzed . | . . . . . . . . . . . . . . . . . . . . . Part Schematics Acquired . | . . . . . . . . . . . . . . . . . . . . . Parts Damaged . | . . . . . . . . . . . . . . . . . . . . . Bothacking | -11 -10 -10 -9 -9 -9 -8 -8 -8 -8 -8 -7 -7 -7 -7 -6 -6 -6 -6 -6 -5 ------------ Run | Scr Mat Min Mat Min Exi Min Mat Gar Mat Gar Fac Low Low Dat Pro Fac Low Low Zio Pro Used RIF Installer 2 | . . . . . . . . 1 . 1 . . . . . . . . . . Threat Obfuscator 1 | . . . . . . . . . . 1 . . . . . . . . . . Robots Hacked 13 | . . . . . . . . . . . 8 2 . . . 2 . . 1 . Non-combat 10 | . . . . . . . . . . . 8 . . . . 2 . . . . Combat 3 | . . . . . . . . . . . . 2 . . . . . . 1 . Robot Hacks Applied 23 | . . . . . . . . . . . 17 2 . . . 2 1 . 1 . parse_system 5 | . . . . . . . . . . . 2 . . . . 1 1 . 1 . generate_echo 3 | . . . . . . . . . . . 3 . . . . . . . . . find_chute 1 | . . . . . . . . . . . 1 . . . . . . . . . find_fabricator 1 | . . . . . . . . . . . 1 . . . . . . . . . drop_inventory 2 | . . . . . . . . . . . 2 . . . . . . . . . recall_reinforcements 1 | . . . . . . . . . . . 1 . . . . . . . . . locate_stockpiles 1 | . . . . . . . . . . . 1 . . . . . . . . . find_recycling 1 | . . . . . . . . . . . 1 . . . . . . . . . map_route 3 | . . . . . . . . . . . 3 . . . . . . . . . mark_security 1 | . . . . . . . . . . . 1 . . . . . . . . . overload_power 1 | . . . . . . . . . . . 1 . . . . . . . . . streamctrl_high 2 | . . . . . . . . . . . . 2 . . . . . . . . formatsys_low 1 | . . . . . . . . . . . . . . . . 1 . . . . Relay Couplers Released 30 | . . . . . . . . 17 . 8 2 . . . . 3 . . . . Ejected 3 | . . . . . . . . . . . . . . . . 3 . . . . Machine Destruction 27 | . . . . . . . . 17 . 8 2 . . . . . . . . . Attached 4 | . . . . . . . . . . . 2 1 . . . 1 . . . . Robots Rewired 3 | . . . . . . . . . . . 1 2 . . . . . . . . Allies Hacked . | . . . . . . . . . . . . . . . . . . . . . Hacks Repelled . | . . . . . . . . . . . . . . . . . . . . . Allies | -11 -10 -10 -9 -9 -9 -8 -8 -8 -8 -8 -7 -7 -7 -7 -6 -6 -6 -6 -6 -5 -------- Run | Scr Mat Min Mat Min Exi Min Mat Gar Mat Gar Fac Low Low Dat Pro Fac Low Low Zio Pro Total Allies 20 | . . . . 6 . . . . . . 4 4 . . 1 5 . . . . Largest Group 6 | . . . . 6 2 1 . . . . 3 2 1 . 1 3 1 . . . Highest-Rated Group 109 | . . . . 109 47 16 . . . . 90 52 32 . 94 93 21 . . . Highest-Rated Ally 94 | . . . . 31 31 16 . . . . 30 32 32 . 94 31 21 . . . Total Orders 3 | . . . . . . . . . . . . . . . . 3 . . . . EXPLORE 3 | . . . . . . . . . . . . . . . . 3 . . . . Ally Attacks 102 | . . . . 53 . 7 . . . . 2 14 3 . 5 18 . . . . Total Damage 1614 | . . . . 613 . 44 . . . . . 326 103 . 182 346 . . . . Kills 23 | . . . . 12 . . . . . . . 6 . . 2 3 . . . . Allies Corrupted . | . . . . . . . . . . . . . . . . . . . . . Allies Melted . | . . . . . . . . . . . . . . . . . . . . . Intel | -11 -10 -10 -9 -9 -9 -8 -8 -8 -8 -8 -7 -7 -7 -7 -6 -6 -6 -6 -6 -5 ------- Run | Scr Mat Min Mat Min Exi Min Mat Gar Mat Gar Fac Low Low Dat Pro Fac Low Low Zio Pro Robot Analysis Total . | . . . . . . . . . . . . . . . . . . . . . Derelict Logs Recovered 9 | . . 2 . 3 . . . . . . . 1 1 . . . 2 . . . Drone Launches 2 | . . . . . . . . . . . . . . . . 2 . . . . Drone Recoveries . | . . . . . . . . . . . . . . . . . . . . . Exploration | -11 -10 -10 -9 -9 -9 -8 -8 -8 -8 -8 -7 -7 -7 -7 -6 -6 -6 -6 -6 -5 ------------- Run | Scr Mat Min Mat Min Exi Min Mat Gar Mat Gar Fac Low Low Dat Pro Fac Low Low Zio Pro Turns Passed 18073 | 4 541 1492 480 1721 1541 1306 110 1833 1231 1748 1302 1030 659 95 485 2017 182 110 63 123 Spaces Moved 11674 | 4 249 818 218 869 855 666 59 887 554 846 727 746 515 80 397 2010 494 307 169 204 Core 196 | . . . . . . . . . . . . . . . . 189 . . . 7 Treads 6027 | . 205 818 218 869 855 666 59 887 377 846 221 . . . . 6 . . . . Legs 225 | 4 44 . . . . . . . 177 . . . . . . . . . . . Wheels 2992 | . . . . . . . . . . . 506 746 515 80 397 748 . . . . Hover . | . . . . . . . . . . . . . . . . . . . . . Flight 2234 | . . . . . . . . . . . . . . . . 1067 494 307 169 197 Fastest Speed 34 | 120 120 160 160 180 180 160 180 180 180 180 120 120 110 120 120 34 34 34 34 34 Average Speed 132 | 120 152 160 162 180 180 177 180 180 180 180 138 120 119 120 120 68 34 34 34 34 Slowest Speed 200 | 120 160 160 180 180 180 180 180 200 200 180 180 120 120 120 120 200 34 34 34 115 Overloaded Moves . | . . . . . . . . . . . . . . . . . . . . . Propulsion Burnouts . | . . . . . . . . . . . . . . . . . . . . . Robots Hopped 6 | . . . . . . . . . . . . . . . . 6 . . . . Cave-ins Triggered . | . . . . . . . . . . . . . . . . . . . . . Exploration Rate (%) 54 | 2 41 98 23 84 87 90 5 98 50 67 18 66 78 68 58 41 72 54 11 41 Regions Visited 20 Branch Regions 12 Pre-discovered Areas 3 | . . . . . . . . . . . . 1 . 1 . . 1 . . . Known Exits Taken 6 | . . . . . . . 1 . 1 . 1 1 . . 1 1 . . . . Unknown Exits Taken 12 | 1 1 1 1 1 1 1 . . . . . . 1 1 . . 1 1 1 . Scrap Searched 18 | . . 3 . 3 . 3 . . . . . 2 2 . 2 . 3 . . . Spaces Dug 202 | . . . . 11 . 48 . 50 . . 11 2 2 . . 75 2 1 . . Terrain Destroyed 546 | . . . . 63 . 122 . 138 21 6 55 17 7 . 6 108 2 1 . . Melee 37 | . . . . . . . . . . . 11 1 . . . 22 2 1 . . Projectile 28 | . . . . . . . . 1 . . 2 . 2 . . 23 . . . . AOE 481 | . . . . 63 . 122 . 137 21 6 42 16 5 . 6 63 . . . . Terrain Rammed 1 | . . . . . . . . 1 . . . . . . . . . . . . Walls Destroyed . | . . . . . . . . . . . . . . . . . . . . . Machines Disabled . | . . . . . . . . . . . . . . . . . . . . . Actions | -11 -10 -10 -9 -9 -9 -8 -8 -8 -8 -8 -7 -7 -7 -7 -6 -6 -6 -6 -6 -5 --------- Run | Scr Mat Min Mat Min Exi Min Mat Gar Mat Gar Fac Low Low Dat Pro Fac Low Low Zio Pro Total 13322 | 3 349 917 295 953 857 734 62 1028 704 991 946 834 546 79 402 2401 503 310 172 236 Wait 530 | . 53 32 35 18 3 3 . 22 52 44 83 16 10 . . 131 4 3 . 21 Move 11642 | 3 248 817 217 868 854 665 58 886 553 845 726 745 514 79 396 1997 493 306 168 204 Hop 6 | . . . . . . . . . . . . . . . . 6 . . . . Pick Up 96 | . 5 8 4 5 . 6 . 14 12 12 12 1 4 . . 13 . . . . Fast Attach 80 | . 2 . 2 1 . 2 3 1 7 5 7 5 2 . . 42 1 . . . Attach 51 | . . 2 2 1 . 6 . 8 2 6 5 3 2 . . 14 . . . . Detach 6 | . 1 . . . . . . . . . 3 . . . . 2 . . . . Swap 122 | . 4 3 6 9 . 7 . 16 15 10 22 10 2 . 5 9 1 . 3 . Drop 126 | . 5 5 5 6 . 6 1 8 21 16 16 3 6 . . 27 1 . . . Fire 483 | . 30 40 24 38 . 36 . 50 42 46 41 31 6 . 1 96 1 . 1 . Melee 64 | . . . . . . . . . . . 22 1 . . . 27 2 1 . 11 Ram 2 | . . . . . . . . 1 . . . . . . . 1 . . . . Kick . | . . . . . . . . . . . . . . . . . . . . . Crush 23 | . 1 10 . 7 . 3 . . . 1 1 . . . . . . . . . Escape Stasis 72 | . . . . . . . . 22 . 6 8 . . . . 36 . . . . Rewire 19 | . . . . . . . . . . . . 19 . . . . . . . . Trap . | . . . . . . . . . . . . . . . . . . . . . Miscellaneous . | . . . . . . . . . . . . . . . . . . . . . Route ------- -11/Scrapyard -10/Materials (discovered 2 exits: *Mat / [*Min]) -10/Mines (discovered 2 exits: *Mat x2) -9/Materials (discovered 2 exits: *Min / Sto) -9/Mines (discovered 2 exits: *Mat / [*Exi]) -9/Exiles (discovered 2 exits: *Min x2) -8/Mines -8/Materials -8/Garrison (discovered 3 exits: *Mat x3) -8/Materials (discovered 3 exits: *Fac x2 / Gar) -8/Garrison (discovered 2 exits: *Fac x2) -7/Factory (discovered 2 exits: *Low x2) -7/Lower Caves -7/Lower Caves (discovered 2 exits: *Fac / *Dat) -7/Data Miner -6/Proximity Caves -6/Factory (discovered 2 exits: [*Fac] / *Low) -6/Lower Caves -6/Lower Caves (discovered 2 exits: [*Fac] / [*Zio]) -6/Zion -5/Proximity Caves History --------- Turn | Location | Event 1 | -11/Scrapyard | Discovered new exit (range 3) 5 | -11/Scrapyard | Entered Materials 212 | -10/Materials | Discovered new exit (range 11) 306 | -10/Materials | Build established: Mutant 345 | -10/Materials | Discovered new exit (range 4) 546 | -10/Materials | Entered Mines 587 | -10/Mines | Met a Derelict bent on vengeance 766 | -10/Mines | Assembled infested the area 771 | -10/Mines | Assisted by a Guerilla fighting off Assembled 1300 | -10/Mines | Discovered new exit (range 7) 1535 | -10/Mines | Learned Materials garrison access intel 1612 | -10/Mines | Learned 2 Materials zone layouts 1790 | -10/Mines | Discovered new exit (range 3) 2038 | -10/Mines | Entered Materials 2038 | -9/Materials | Evolved 2 slots: Utility x2 2039 | -9/Materials | Identified exit to Storage 2402 | -9/Materials | Discovered new exit (range 16) 2518 | -9/Materials | Entered Mines 2529 | -9/Mines | Learned location of 1 exit from Lower Caves 2561 | -9/Mines | Learned location of 1 exit from Proximity Caves 2621 | -9/Mines | Assisted by bots powering up and referring to "LRC-V3" 2641 | -9/Mines | Learned Materials terminal intel 2661 | -9/Mines | Deemed a non-threat by the Exiles lab entrance 2661 | -9/Mines | Discovered new exit (range 5) 2807 | -9/Mines | Received a Mining Laser from a helpful Derelict 3004 | -9/Mines | Found a damaged Exp. Sensor Array with a note attached 3009 | -9/Mines | Found Prototype Device 3029 | -9/Mines | Excavation squad dispatched 3029 | -9/Mines | A large section of the Mines collapsed 3156 | -9/Mines | Discovered new exit (range 10) 3298 | -9/Mines | Met a Derelict shopkeep closing up shop 4147 | -9/Mines | Build established: Scavenger-Mutant 4239 | -9/Mines | Entered Exiles 4239 | -9/Exiles | Accompanied by 2 allies 4269 | -9/Exiles | Led the pair of lost Derelicts to a safe place 4288 | -9/Exiles | Met 8R-AWN 4315 | -9/Exiles | Met EX-HEX 4441 | -9/Exiles | Discovered new exit (range 15) 4583 | -9/Exiles | Met EX-DEC 4661 | -9/Exiles | Met EX-BIN 5018 | -9/Exiles | Visited The Gauntlet 5755 | -9/Exiles | Discovered new exit (range 14) 5780 | -9/Exiles | Entered Mines 5780 | -8/Mines | Accompanied by 1 ally 5952 | -8/Mines | Discovered new exit (range 12) 6649 | -8/Mines | Build established: Mutant 7086 | -8/Mines | Entered Materials 7086 | -8/Materials | Evolved 2 slots: Utility x2 7087 | -8/Materials | Loaded intel: 12 terminal locations 7088 | -8/Materials | Loaded intel: 1 garrison access location 7194 | -8/Materials | Identified exit to Garrison 7196 | -8/Materials | Entered Garrison 7354 | -8/Garrison | Triggered checkpoint 7380 | -8/Garrison | Garrison Relay disabled 7490 | -8/Garrison | Triggered checkpoint 7564 | -8/Garrison | Discovered new exit (range 8) 7638 | -8/Garrison | Triggered checkpoint 7665 | -8/Garrison | Garrison Relay disabled 7729 | -8/Garrison | Lost 4 parts (1p1n2w) 7890 | -8/Garrison | Phase Generator disabled 8162 | -8/Garrison | Triggered checkpoint 8206 | -8/Garrison | Triggered checkpoint 8240 | -8/Garrison | Garrison Relay disabled 8266 | -8/Garrison | Discovered new exit (range 10) 8356 | -8/Garrison | Triggered checkpoint 8522 | -8/Garrison | Discovered new exit (range 10) 8534 | -8/Garrison | Triggered checkpoint 8634 | -8/Garrison | Garrison Relay disabled 8691 | -8/Garrison | Installed Relay Interface Framework 8732 | -8/Garrison | Build established: Scavenger-Mutant 9029 | -8/Garrison | Entered Materials 9073 | -8/Materials | Identified Exp. Sensor Array 9776 | -8/Materials | Discovered new exit (range 10) 9970 | -8/Materials | Build established: Mutant 10228 | -8/Materials | Discovered new exit (range 15) 10259 | -8/Materials | Identified exit to Garrison 10260 | -8/Materials | Entered Garrison 10384 | -8/Garrison | Triggered checkpoint 10415 | -8/Garrison | Garrison Relay disabled 10502 | -8/Garrison | Triggered checkpoint 10712 | -8/Garrison | Discovered new exit (range 10) 10740 | -8/Garrison | Expanded RIF knowledge: Threat Obfuscation 10757 | -8/Garrison | Spotted B-75 Beast 10757 | -8/Garrison | Spotted B-75 Beast 10818 | -8/Garrison | Core integrity fell below 50% 11094 | -8/Garrison | Discovered new exit (range 9) 11116 | -8/Garrison | Triggered checkpoint 11147 | -8/Garrison | Garrison Relay disabled 11326 | -8/Garrison | Destroyed B-75 Beast 11335 | -8/Garrison | Lost 4 parts (1u3w) 11701 | -8/Garrison | Destroyed B-75 Beast 12008 | -8/Garrison | Entered Factory 12008 | -7/Factory | Evolved 2 slots: Power x1, Utility x1 12029 | -7/Factory | Build established: Scavenger-Mutant 12839 | -7/Factory | Fabricated Hacking Suite? 12895 | -7/Factory | Identified exit to Lower Caves 12984 | -7/Factory | Fabricated L-41 Fighter? 13208 | -7/Factory | First assault squad dispatched 13310 | -7/Factory | Entered Lower Caves 13311 | -7/Lower Caves | Identified exit to Lower Caves 13313 | -7/Lower Caves | Prc. Shock Rifle stolen by Master Thief 13355 | -7/Lower Caves | Learned location of Extension (-5) 13981 | -7/Lower Caves | Attracted the attention of an 0b10 outpost 14340 | -7/Lower Caves | Entered another Lower Caves area 14340 | -7/Lower Caves | Accompanied by 1 ally 14381 | -7/Lower Caves | Attracted the attention of an 0b10 checkpoint 14458 | -7/Lower Caves | Discovered new exit (range 13) 14949 | -7/Lower Caves | Discovered new exit (range 6) 14999 | -7/Lower Caves | Entered Data Miner 14999 | -7/Data Miner | Discovered new exit (range 6) 15022 | -7/Data Miner | Met Data Miner 15044 | -7/Data Miner | Learned location of Section 7 (-3) 15044 | -7/Data Miner | Acquired the access code to Warlord's prototype stash 15063 | -7/Data Miner | Received God Mode back door access code from Data Miner 15094 | -7/Data Miner | Entered Proximity Caves 15095 | -6/Proximity Caves | Identified exit to Factory 15236 | -6/Proximity Caves | Escorted by Enhanced Grunt 15461 | -6/Proximity Caves | Build established: Mutant 15576 | -6/Proximity Caves | Attracted the attention of an 0b10 checkpoint 15579 | -6/Proximity Caves | Entered Factory 15579 | -6/Factory | Evolved 2 slots: Utility x2 15580 | -6/Factory | Identified exit to Lower Caves 15786 | -6/Factory | Incoming investigation squad redirected 15828 | -6/Factory | Spotted B-75 Beast 15854 | -6/Factory | Destroyed B-75 Beast 15883 | -6/Factory | Lost 3 parts (2u1w) 15891 | -6/Factory | Fabricated K-01 Serf? 15984 | -6/Factory | Local fabrication network quarantined 16210 | -6/Factory | Build established: Scavenger-Mutant 16279 | -6/Factory | First assault squad dispatched 16305 | -6/Factory | Incoming assault squad redirected 16602 | -6/Factory | Lost 4 parts (1p3u) 16863 | -6/Factory | Core integrity fell below 50% 16888 | -6/Factory | Released all parts (8) 16918 | -6/Factory | Lost 10 parts (3p1n4u2w) 17104 | -6/Factory | Allied Derelicts emerged from ambush trap array 17147 | -6/Factory | Build established: Mutant 17541 | -6/Factory | Discovered new exit (range 7) 17573 | -6/Factory | Incoming investigation squad redirected 17596 | -6/Factory | Entered Lower Caves 17596 | -6/Lower Caves | Accompanied by 1 ally 17600 | -6/Lower Caves | Spotted B-75 Beast 17635 | -6/Lower Caves | Learned location of Zion (-6) 17735 | -6/Lower Caves | Discovered new exit (range 16) 17778 | -6/Lower Caves | Entered another Lower Caves area 17780 | -6/Lower Caves | Attracted the attention of an 0b10 checkpoint 17783 | -6/Lower Caves | Discovered new exit (range 11) 17848 | -6/Lower Caves | Spotted B-75 Beast 17863 | -6/Lower Caves | Discovered new exit (range 5) 17888 | -6/Lower Caves | Entered Zion 17946 | -6/Zion | Discovered new exit (range 13) 17951 | -6/Zion | Entered Proximity Caves 17977 | -5/Proximity Caves | Spotted B-75 Beast 18055 | -5/Proximity Caves | Core integrity fell below 20% 18071 | -5/Proximity Caves | Released all parts (10) 18074 | -5/Proximity Caves | Destroyed by Y-64 Sentinel with Wave Gun Last Messages --------------- 18050_ Nuclear Pulse Thruster destroyed. 18053_ Imp. Target Analyzer fries itself beyond repair. 18053_ Imp. Heat Sink fries itself beyond repair. 18054_ Mic. Fission Core fries itself beyond repair. 18057_ System corrupted: Axe targeting data glitched. 18059_ Unknown Hover Unit fries itself beyond repair. 18060_ System corrupted: Axe targeting data glitched. 18063_ Lgt. Angular Momentum Engine destroyed. 18068_ Destroyed Hpw. Shock Rifle. 18068_ Powered Hammer follow-up attack on P-70 Sage. 18071_ Released Core Analyzer. 18071_ Released Melee Analysis Suite. 18071_ Released Cld. Cesium-ion Thruster. 18071_ Released Targeting Computer. 18071_ Released Weight Redist. System. 18071_ Released Adv. Melee Analysis Suite. 18071_ Released Coolant Injector. 18071_ Released Relay Coupler [NC]. 18071_ Released Powered Hammer. 18071_ Released Axe. Map ----- +----------------------------------------------------+ | ###???????????????????????????????????????? | | #?????????????????????????????????????????? | | ###???????????????????????????????????????? | | #???????????????????????????????????????? | | #???????????????????????????????????????? | | #+##### #???????????????????????????????????????? | | ??????# #???????????????????????????????????????? | | ??????# #???????????????????????????????????????? | | ??????# #???????????????????????????????????????? | | ??????# #???????????????????????????????????????? | | ??????# #???????????????????????????????????????? | | ??????# #???????????????????????????????????????? | | ??????# #???????????????????????????????????????? | | ??????# #???????????????????????????????????????? | | ??????# #???????????????????????????????????????? | | #+##### #?????????????#########?????????????????? | | #?????????????# #?????????????????? | | #?????????????# #?????????????????? | | ######?????????###?# #?????????????????? | | #???????????#### #?? Y #######???????????? | | ##??####???## #?? ???????????? | | #### ##### ! %##? ??????????????? | | !=/ ## #?????????????????? | | ### /= ## #?????????????????? | | ??## ####p ##????????????????? | | ???# @ #????????????????? | | ???## #### ?????????? | | ????###??# ### ## ## ????????? | | ???????### ### ## ### ##???#######?????????? | | ???????# ## ####?# ##????????????????????? | | ??????## #???? ###?????????????????????? | | ??????# ##??######???????????????????????? | | ??????# #???????????????????????????????? | | ??????# ## ##???????????????????????????????? | | ??????# ### ##????????????????????????????????? | | ??????# ?####?????????????????????????????????? | | ????? ??????????????????????????????????????? | | ???? ??????????????????????????????????????? | | ??? ??????????????????????????????????????? | | ??#### ?????????????????????????????????????? | | ?????## ?????????????????????????????????????? | | ??????## ?????????????????????????????????????? | | ???????# ?????????????????????????????????????? | | ???????# ????????????????????????????????????? | | ???????# ????????????????????????????????????? | | ???????? ????????????????????????????????????? | | ???????? ###????????????????????????????????????? | | ???????? #???????????????????????????????????????? | | ?????????????????????????????????????????????????? | | ?????????????????????????????????????????????????? | +----------------------------------------------------+ Best States ------------- Heat Dissipation 122 Coolant Potential 65 Energy Generation 29 Energy Capacity 480 Matter Stores 300 Matter Capacity 300 Sight Range 18 Robot Scan Range 30 Terrain Scan Range 20 Terrain Scan Density 10 Additional Mass Support 6 Armor Coverage 600 Resistance: TH 15 Propulsion Shielding 66 Phase Shifting 5 Evasion (%) 78 Targeting Accuracy 11 Melee Accuracy 13 Core Analysis 6 Recoil Reduction 2 Matter Filtering 30 Offensive Hacking 10 Defensive Hacking 10 Relay Coupler Types 26 Relay Coupler Value 1 Item Schematics ----------------- Hacking Suite | -8/Materials | Hacked Combat Drone Bay | -7/Data Miner | Free Lgt. Regenerative Plating | -7/Data Miner | Free Tactical Coordination Suite | -7/Data Miner | Free Exp. Flexi-carbon Leg | -7/Data Miner | Free Robot Schematics ------------------ S-27 Virus | -7/Data Miner | Free G-50 Soldier | -7/Data Miner | Free G-67 Veteran | -7/Data Miner | Free P-70 Sage | -7/Data Miner | Free I-36 Angel | -7/Data Miner | Free Fabricated ------------ Hacking Suite | x1 | -7/Factory L-41 Fighter | x3 | -7/Factory | Preloaded K-01 Serf | x1 | -6/Factory | Preloaded Alien Tech Used ----------------- None Achievements -------------- Infiltrator Challenges ------------ None Game ------ Seed MasterTerrainNegator Manual? 0 Play Time 02:58:07 Cumulative 401.0 hours Start 2020.09.19 @ 01:23:07 End 2020.09.19 @ 14:30:58 Sessions 9 Manual Loads 0 Difficulty Rogue Special Mode None Game No. 199 Rogue 199 Adventurer 0 Explorer 0 Win Type - Total 11 Types 10/0/1/0/0/0/0/0/0 Lore% 74 Gallery% 81 Achievement% 51 Wizard Run 0 Options --------- ASCII 0 Keyboard 0 Movement Numpad Keybinds 0 Fullscreen 1 Font 18/SmallcapsGlow Map View 76x50 Tactical HUD 1 Map Filters NONE Filters NONE Steam 1 RUN: 6672a31a-2821-4cbf-b0e7-e38bd08d41d2